bitfinex/quotes_ETHUSD_20241106
["timestamp","ask_amount","ask_price","bid_price","bid_amount"]
[1730933229799,0.7632,2716.0,2714.6,0.55]
[1730933230002,0.7632,2716.0,2714.5,3.0]
[1730933230202,0.03646594,2715.7,2714.5,3.73691048]
[1730933230404,0.7632,2716.0,2714.5,3.73691048]
[1730933230667,0.7632,2716.0,2714.6,0.55]
[1730933231006,0.03646594,2715.7,2714.5,0.73691048]
[1730933231446,0.7632,2716.0,2714.6,0.07365695]
[1730933231613,0.7632,2716.0,2714.6,0.51796722]
[1730933231817,0.03620166,2715.7,2714.7,0.55]
[1730933232171,0.7632,2716.0,2714.7,0.56]
[1730933232506,0.04449808,2715.7,2714.9,0.56]
[1730933232706,0.01,2716.0,2715.1,0.01]
[1730933232908,0.01,2716.0,2715.2,0.55]
[1730933233348,0.01,2716.0,2715.4,0.55]
[1730933233846,0.01,2716.0,2715.2,0.55]
[1730933234054,0.01,2716.0,2714.9,3.0]
[1730933234208,0.01,2716.0,2715.0,0.01]
[1730933234408,0.01,2716.0,2715.0,0.07362885]
[1730933234668,0.01,2716.0,2714.9,3.0]
[1730933234809,0.01,2716.0,2715.1,0.0736313]
[1730933235005,0.01,2716.0,2714.9,3.0]
[1730933235212,0.01,2716.0,2715.0,0.07363678]
[1730933235412,0.01,2716.0,2715.1,0.30836368]
[1730933235836,0.01,2716.0,2715.2,0.55]
[1730933237666,0.01,2716.0,2715.4,0.55]
[1730933237872,0.01,2716.0,2715.6,0.55]
[1730933238086,0.01,2716.0,2715.8,0.55]
[1730933239541,0.01,2716.0,2715.9,0.07361878]
[1730933239761,0.01,2716.0,2715.5,0.01]
[1730933240475,5.29053764,2716.6,2715.3,3.7605]
[1730933241643,5.26333764,2716.6,2715.4,0.55]
[1730933242246,0.01,2718.7,2716.4,3.55]
[1730933242467,0.01,2718.7,2716.8,0.55]
[1730933242672,0.01,2718.7,2716.8,0.54730498]
[1730933242881,0.01,2718.6,2716.8,0.54730498]
[1730933243176,0.01,2718.7,2716.4,3.0]
[1730933243372,0.01,2718.2,2716.4,3.0]
[1730933243575,0.01,2718.2,2716.5,0.07359797]
[1730933243782,0.01,2718.3,2715.8,0.01]
[1730933243940,2.02682456,2718.9,2551.4,0.45284091]
[1730933243941,0.01,2714.1,2711.5,4.36910479]
[1730933244138,0.01,2715.4,2712.3,0.07369686]
[1730933244139,0.8192,2713.9,2712.3,0.07369686]
[1730933244378,0.02,2715.1,2713.0,4.36910479]
[1730933244587,0.8192,2715.1,2713.1,0.43691048]
[1730933245073,0.01,2715.0,2713.1,0.43691048]
[1730933245276,0.8192,2715.1,2713.2,0.07366899]
[1730933245474,0.8192,2715.1,2713.1,0.43691048]
[1730933245852,0.8192,2715.1,2713.4,4.36910479]
[1730933246050,0.8292,2715.1,2713.5,4.08691048]
[1730933246952,0.8192,2715.1,2713.8,0.8166]
[1730933247155,0.8192,2715.1,2714.0,0.55]
[1730933247483,0.8192,2715.1,2714.1,0.07366047]
[1730933247666,0.8192,2715.1,2713.8,0.8166]
[1730933247837,0.8292,2715.1,2713.9,0.07366061]
[1730933248177,0.8192,2715.1,2713.9,0.07366061]
[1730933248943,0.8292,2715.1,2713.9,0.07366061]
[1730933249341,0.8292,2715.1,2713.8,0.8166]
[1730933250044,0.8292,2715.1,2713.9,0.55]
[1730933251482,0.8192,2715.1,2714.0,0.07366209]
[1730933251689,0.8192,2715.1,2714.1,0.55]
[1730933251890,0.8192,2715.1,2713.9,0.55]
[1730933252194,0.8192,2715.1,2713.9,0.5491215]
[1730933253869,0.8192,2715.1,2714.0,0.0736596]
[1730933254198,0.8192,2715.1,2714.1,0.55]
[1730933254403,0.8192,2715.1,2714.3,0.55]
[1730933254568,0.8192,2715.1,2714.5,0.55]
[1730933255489,0.01,2715.5,2714.5,0.55]
[1730933255796,0.01,2715.4,2714.5,0.55]
[1730933257180,0.01,2715.3,2714.5,0.55]
[1730933257857,0.01,2715.5,2714.5,0.55]
[1730933258054,0.01,2715.3,2714.5,0.55]
[1730933258259,0.01,2715.5,2714.5,0.55]
[1730933258584,0.01,2715.1,2714.5,0.55]
[1730933260907,0.01,2715.5,2714.7,0.55]
[1730933261200,0.01,2715.5,2714.8,0.0736479]
[1730933261905,0.8102,2715.8,2714.9,0.55]
[1730933262074,0.8102,2715.8,2715.0,0.07364163]
[1730933262758,0.8102,2715.8,2714.7,0.55]
[1730933263474,0.02,2715.9,2714.7,0.55]
[1730933264185,0.02,2715.9,2714.9,0.55]
[1730933264359,0.7578,2716.2,2715.0,0.07364011]
[1730933264559,0.7578,2716.2,2714.7,0.55]
[1730933265801,0.7578,2716.2,2714.9,0.55]
[1730933266035,0.7578,2716.2,2715.0,0.07364017]
[1730933270036,0.7578,2716.2,2715.0,1.62147059]
[1730933270348,0.7578,2716.2,2715.4,0.74753657]
[1730933270636,0.7578,2716.2,2715.5,1.62810706]
[1730933270797,0.7578,2716.2,2715.6,1.55416215]
[1730933271000,0.7578,2716.2,2715.7,0.69529812]
[1730933271229,0.7578,2716.2,2715.8,1.55531972]
[1730933271429,0.7578,2716.2,2715.7,0.07363326]
[1730933271635,0.7578,2716.2,2715.8,1.55541898]
[1730933271937,0.7578,2716.2,2715.7,0.82116983]
[1730933272262,0.7585,2716.7,2715.8,1.55572516]
[1730933272534,0.07359797,2716.6,2715.7,0.07363326]
[1730933272841,0.07359797,2716.6,2715.8,1.55573162]
[1730933273133,0.07359797,2716.6,2715.7,0.82116983]
[1730933273339,0.07359797,2716.6,2715.8,1.55571196]
[1730933273544,0.07359797,2716.6,2715.7,0.07363326]
[1730933273760,0.07359797,2716.6,2715.8,1.55567261]
[1730933274055,0.07359797,2716.6,2715.7,0.82116983]
[1730933274213,0.07359797,2716.6,2715.8,1.55563023]
[1730933274415,0.07359797,2716.6,2715.7,0.82116983]
[1730933274636,0.07359797,2716.6,2715.8,1.5555655]
[1730933274848,0.07359797,2716.6,2715.7,0.82116983]
[1730933275012,0.07359797,2716.6,2715.8,1.55543185]
[1730933275343,0.07359797,2716.6,2715.9,0.62217456]
[1730933275523,0.07359797,2716.6,2715.7,0.82116983]
[1730933275721,0.07359797,2716.6,2715.8,1.55538303]
[1730933275924,1.50292911,2716.7,2715.9,0.07363323]
[1730933276163,1.50292911,2716.7,2716.0,1.55512039]
[1730933276448,1.50292911,2716.7,2716.1,0.6956904]
[1730933276651,1.50292911,2716.7,2715.8,0.74753657]
[1730933276851,1.50292911,2716.7,2715.9,1.55512836]
[1730933277149,1.50292911,2716.7,2716.0,1.55510191]
[1730933277449,1.50292911,2716.7,2715.8,0.74753657]
[1730933277612,1.50292911,2716.7,2715.9,2.30237782]
[1730933277812,1.50292911,2716.7,2716.0,2.30237782]
[1730933278013,1.50292911,2716.7,2716.1,1.55484125]
[1730933278316,1.50292911,2716.7,2716.2,1.62813992]
[1730933278540,1.50292911,2716.7,2716.1,0.74753657]
[1730933278744,1.50292911,2716.7,2716.2,1.55444588]
[1730933279050,1.50292911,2716.7,2716.0,0.74753657]
[1730933279250,1.50292911,2716.7,2716.1,1.5544123]
[1730933279554,0.7585,2716.7,2716.2,0.0736211]
[1730933280057,0.7585,2716.7,2716.0,0.8211577]
[1730933280256,0.7585,2716.7,2716.1,1.55407473]
[1730933280554,0.7585,2716.7,2716.2,0.62159055]
[1730933280858,0.7585,2716.7,2716.3,0.07362114]
[1730933281232,0.7585,2716.7,2716.0,0.74753657]
[1730933281233,0.7585,2716.7,2715.9,0.74753657]
[1730933281554,0.7585,2716.7,2715.7,0.74753657]
[1730933281757,0.7585,2716.7,2715.8,1.55390548]
[1730933282078,0.7585,2716.7,2715.9,0.62156219]
[1730933282368,0.7585,2716.7,2715.7,0.76071545]
[1730933282582,0.7585,2716.7,2715.6,1.48189966]
[1730933283368,0.7585,2716.7,2715.5,0.55]
[1730933283771,0.7585,2716.7,2715.5,0.96712392]
[1730933285485,0.7585,2716.7,2715.7,0.55]
[1730933286148,0.7585,2716.7,2715.9,0.55]
[1730933286355,0.7585,2716.7,2715.7,0.96712392]
[1730933286970,0.8009,2717.1,2715.9,0.55]
[1730933287741,0.8009,2717.1,2715.9,0.96712392]
[1730933287934,0.8009,2717.1,2716.1,0.55]
[1730933288379,0.7578,2716.4,2715.4,0.74753657]
[1730933288578,0.01,2716.0,2713.9,1.53643657]
[1730933288760,0.83139797,2716.0,2714.2,0.07366003]
[1730933289177,0.83139797,2716.0,2714.0,4.3706931]
[1730933291179,0.83139797,2716.0,2714.2,0.8149]
[1730933291481,0.83139797,2716.0,2714.4,4.3706931]
[1730933291685,0.7578,2716.0,2714.5,0.54766895]
[1730933292477,0.7578,2716.0,2714.6,0.55]
[1730933292741,0.7578,2716.0,2714.9,3.0]
[1730933292945,0.7578,2716.0,2715.0,0.07363468]
[1730933293165,0.7532,2717.1,2715.1,0.55]
[1730933293401,0.07359797,2717.2,2715.3,3.55]
[1730933293402,0.7532,2717.0,2715.3,3.55]
[1730933293543,0.7532,2717.0,2715.5,1.3199]
[1730933293744,0.7532,2717.0,2715.6,3.07361284]
[1730933293944,0.7532,2717.0,2715.5,0.7699]
[1730933294245,0.7532,2717.0,2715.6,0.62361857]
[1730933294477,0.7532,2717.0,2715.6,0.55]
[1730933294662,0.7532,2717.0,2715.8,0.55]
[1730933295059,0.07359797,2717.6,2715.8,0.55]
[1730933295259,0.751,2717.6,2716.0,0.55]
[1730933296691,0.751,2717.6,2716.1,0.01]
[1730933296986,0.751,2717.6,2716.3,0.55]
[1730933297312,0.751,2717.6,2716.2,0.55]
[1730933297648,0.751,2717.6,2716.1,0.54147212]
[1730933297958,0.751,2717.6,2715.9,3.48992338]
[1730933298159,0.751,2717.6,2716.0,4.33606165]
[1730933298343,0.751,2717.6,2716.0,1.33606165]
[1730933299584,0.751,2717.6,2716.0,4.33606165]
[1730933299756,0.751,2717.6,2716.0,2.14416165]
[1730933300145,0.751,2717.6,2716.0,5.14416165]
[1730933300346,0.751,2717.6,2716.2,0.55]
[1730933300585,0.7955,2717.1,2715.6,0.44992338]
[1730933300773,0.55,2717.2,2714.8,5.12278194]
[1730933300774,0.55,2716.8,2714.8,5.12278194]
[1730933300971,0.86909797,2716.7,2714.9,0.70140152]
[1730933301495,0.86909797,2716.7,2715.0,0.756]
[1730933301779,0.7955,2716.7,2715.1,0.62085283]
[1730933301985,0.07359797,2716.6,2715.0,1.3020231]
[1730933302283,0.07359797,2716.6,2715.1,0.27555135]
[1730933302284,0.7781,2716.5,2715.1,0.27555135]
[1730933302487,0.7781,2716.5,2715.1,0.82157445]
[1730933302987,0.7781,2716.5,2714.7,1.12813326]
[1730933302988,0.1292394,2719.5,2719.4,0.01]
[1730933303193,0.1292394,2719.5,2719.4,0.11]
[1730933303606,0.9316394,2719.5,2719.4,0.11]
[1730933304213,0.1292394,2719.5,2717.8,0.8047]
[1730933304427,0.1292394,2719.5,2718.3,3.56]
[1730933304777,0.1292394,2719.5,2719.0,0.01]
[1730933304984,0.08936126,2720.0,2719.0,0.55]
[1730933305209,0.08936126,2720.0,2719.0,0.56]
[1730933306082,0.08936126,2720.0,2719.0,0.55]
[1730933306279,0.08936126,2720.0,2718.9,0.8047]
[1730933306483,0.08936126,2720.0,2718.0,0.01]
[1730933306484,0.8262,2719.9,2717.8,0.74820838]
[1730933306782,0.8262,2719.9,2717.6,0.92458418]
[1730933306981,0.8327,2719.6,2717.5,4.75072113]
[1730933307419,0.8427,2719.6,2717.5,4.75072113]
[1730933307717,0.8327,2719.4,2717.5,4.75072113]
[1730933307921,0.7615,2719.2,2717.5,4.75072113]
[1730933308495,0.7615,2719.2,2717.6,0.07357001]
[1730933308711,0.7615,2719.0,2717.6,0.07357001]
[1730933308910,0.7615,2719.0,2717.6,0.07356994]
[1730933310683,0.7615,2719.0,2717.6,3.07356994]
[1730933311232,0.7615,2719.0,2718.1,3.0]
[1730933311530,0.7615,2719.0,2718.2,0.07354855]
[1730933311819,0.7615,2719.0,2718.1,3.0]
[1730933311820,0.7615,2719.0,2718.3,0.07354898]
[1730933312195,1.89604444,2722.2,2719.9,0.01]
[1730933312403,3.17407335,2726.4,2726.3,0.01]
[1730933312606,5.66090484,2728.4,2726.0,0.01]
[1730933312806,4.75072113,2728.5,2725.3,0.01]
[1730933313010,4.75072113,2728.3,2726.1,1.466217]
[1730933313191,4.75072113,2728.3,2725.0,0.01]
[1730933313389,1.02590305,2728.2,2724.4,0.01]
[1730933313747,1.02590305,2728.2,2724.2,5.50552113]
[1730933313748,4.75072113,2727.7,2724.5,1.466999]
[1730933313955,4.75072113,2727.1,2723.7,0.01]
[1730933314240,4.75072113,2726.5,2723.6,1.467401]
[1730933314534,4.75072113,2725.9,2722.6,0.01]
[1730933314748,0.46670485,2725.8,2722.9,0.01]
[1730933315038,0.46670485,2725.8,2721.0,5.01]
[1730933315039,4.75072113,2729.1,2725.5,0.01]
[1730933315193,4.75072113,2728.0,2725.0,1.1522535]
[1730933315392,0.785,2727.4,2724.5,0.01]
[1730933316026,4.75072113,2727.0,2724.1,0.01]
[1730933316199,0.7877,2726.4,2723.2,3.01]
[1730933316405,5.70234705,2727.4,2722.7,4.75072113]
[1730933316406,0.7877,2725.9,2722.7,4.75072113]
[1730933316605,0.7877,2725.9,2722.6,0.01]
[1730933316796,4.75072113,2725.5,2722.7,0.01]
[1730933316998,0.7756,2725.4,2722.3,4.75072113]
[1730933317334,0.55,2725.2,2722.4,0.01]
[1730933317504,0.55,2725.1,2722.4,0.01]
[1730933317833,0.55,2724.7,2722.3,4.75072113]
[1730933318133,0.55,2724.3,2721.9,0.01]
[1730933318337,0.8329,2724.0,2721.7,0.01]
[1730933318493,0.55,2723.9,2721.7,0.7756]
[1730933318699,0.55,2723.9,2721.7,0.01]
[1730933318900,0.55,2723.9,2721.4,0.01]
[1730933319219,0.55,2723.9,2721.5,0.01]
[1730933319442,0.55,2723.7,2721.5,0.01]
[1730933319727,0.55,2723.7,2721.2,0.01]
[1730933319728,0.55,2723.7,2721.3,0.02]
[1730933320039,0.55,2723.7,2721.5,0.02]
[1730933320198,0.55,2723.7,2721.6,0.07345764]
[1730933320398,0.55,2723.7,2721.5,0.01]
[1730933320729,0.55,2723.7,2721.5,0.07345777]
[1730933320909,0.55,2723.7,2721.6,0.07346377]
[1730933322536,0.55,2723.7,2721.5,0.02]
[1730933322904,0.43829,2723.6,2721.5,0.02]
[1730933323101,10.8086,2727.7,2726.5,0.01]
[1730933323300,10.8086,2727.7,2724.7,3.0]
[1730933323301,1.46724,2727.0,2725.6,0.02]
[1730933323511,1.46724,2727.0,2725.4,0.01]
[1730933323723,1.46724,2727.0,2725.6,1.466484]
[1730933323947,0.8086,2726.9,2724.4,0.7896]
[1730933324247,0.8086,2726.9,2724.8,1.466964]
[1730933324535,0.55593211,2726.8,2724.7,0.01]
[1730933324740,0.55593211,2726.8,2724.7,1.476953]
[1730933324945,0.55593211,2726.8,2724.7,0.01]
[1730933325443,0.55593211,2726.8,2724.8,0.01]
[1730933325799,0.55593211,2726.8,2724.9,0.07336895]
[1730933326005,0.8086,2726.9,2724.9,0.07336895]
[1730933326225,0.8086,2726.9,2725.0,0.01]
[1730933326536,0.8086,2726.9,2725.0,0.08336552]
[1730933326932,0.8086,2726.9,2725.2,0.01]
[1730933327134,0.8086,2726.9,2725.2,0.08336301]
[1730933327346,0.8086,2726.9,2725.2,0.68727619]
[1730933327847,0.8086,2726.9,2725.4,0.01]
[1730933328151,0.8086,2726.9,2725.4,0.61391318]
[1730933328365,0.8086,2726.9,2725.5,0.60391318]
[1730933328943,0.8086,2726.9,2725.6,0.07335386]
[1730933329107,0.8086,2726.9,2725.6,0.67726704]
[1730933329313,0.8086,2726.9,2726.1,0.01]
[1730933329508,0.8086,2726.9,2726.2,0.60391318]
[1730933330040,0.8129,2727.9,2726.3,0.07333899]
[1730933330205,0.55636211,2727.8,2726.3,0.67725217]
[1730933330401,0.8129,2727.9,2726.4,0.60391318]
[1730933330612,0.8129,2727.9,2726.5,0.07333304]
[1730933331012,0.8129,2727.9,2726.5,0.08333304]
[1730933331236,2.4968403,2728.7,2727.8,0.01]
[1730933331237,1.8929273,2728.7,2727.8,0.01]
[1730933331443,1.8530597,2729.2,2727.9,0.56741668]
[1730933331641,1.84765088,2729.0,2727.9,0.01]
[1730933331806,0.8146,2729.3,2727.7,0.46867085]
[1730933331807,1.8530597,2729.2,2727.7,0.46867085]
[1730933332007,1.8530597,2729.2,2727.5,0.01]
[1730933332642,0.0219811,2729.6,2728.8,0.01]
[1730933332816,0.0219811,2729.6,2728.6,0.01]
[1730933333019,0.0219811,2729.6,2728.2,0.02]
[1730933333250,0.0219811,2729.6,2728.6,0.01]
[1730933333447,0.0219811,2729.6,2728.3,0.45223388]
[1730933333655,0.0219811,2729.6,2728.4,0.07327065]
[1730933333857,0.0219811,2729.6,2728.6,0.01]
[1730933334160,0.7552,2729.5,2728.2,0.44223388]
[1730933334315,0.0219811,2729.6,2728.5,0.01]
[1730933334525,0.0219811,2729.6,2728.6,0.01]
[1730933334865,0.0219811,2729.6,2728.5,0.5495649]
[1730933335017,0.0219811,2729.6,2728.2,0.01]
[1730933335220,0.7552,2729.5,2728.2,0.5495649]
[1730933336120,0.55,2729.4,2728.3,0.07328252]
[1730933336315,0.7552,2729.5,2728.3,0.07328252]
[1730933336557,0.7552,2729.5,2728.3,0.62284742]
[1730933336717,0.55,2729.4,2728.4,0.07328985]
[1730933336918,0.7552,2729.5,2728.4,0.5495649]
[1730933337121,0.7552,2729.5,2727.5,0.02]
[1730933337122,0.55,2729.4,2727.5,0.02]
[1730933337321,0.7552,2729.5,2727.7,0.01]
[1730933337559,0.7552,2729.5,2727.8,0.54869823]
[1730933337861,0.7552,2729.5,2727.9,0.07328977]
[1730933338046,0.55,2729.4,2727.8,0.48609823]
[1730933338222,0.55,2729.4,2727.9,0.48609823]
[1730933338421,0.55,2729.4,2727.6,0.52393087]
[1730933339044,0.55,2729.4,2727.7,0.07329856]
[1730933339363,0.55,2729.4,2727.7,0.59722943]
[1730933339533,0.55,2729.4,2727.5,0.01]
[1730933339729,0.55,2729.4,2727.3,0.01]
[1730933339920,0.55,2729.2,2726.8,0.01]
[1730933340352,0.55,2729.0,2726.8,0.02]
[1730933340565,0.55,2729.0,2726.8,0.01]
[1730933340731,0.55,2729.0,2726.9,0.48609823]
[1730933341180,0.55,2729.0,2726.8,0.01]
[1730933341795,0.55,2728.8,2726.6,0.46418087]
[1730933341954,0.8245,2728.7,2726.4,0.8045]
[1730933342294,0.55,2728.4,2726.3,0.01]
[1730933342487,0.55,2728.2,2726.2,0.01]
[1730933342972,0.55,2728.2,2726.1,6.40254768]
[1730933342973,0.55,2728.0,2726.1,6.40254768]
[1730933343174,0.55,2728.0,2726.1,0.01]
[1730933343751,0.55,2728.0,2726.3,0.01]
[1730933343978,0.55,2728.0,2726.2,0.51239912]
[1730933344354,0.55,2728.0,2726.3,0.01]
[1730933344598,0.55,2728.0,2726.4,0.53573245]
[1730933345476,0.8245,2728.1,2726.4,0.53573245]
[1730933345683,0.55,2728.0,2725.9,0.55573245]
[1730933346058,0.55,2728.0,2726.0,0.53573245]
[1730933348205,0.55,2728.0,2726.0,0.54573245]
[1730933348570,0.55,2728.0,2726.1,0.07333909]
[1730933348784,0.55,2728.0,2726.1,0.57487875]
[1730933349107,0.8173,2727.9,2726.1,0.07333909]
[1730933349305,0.55,2728.1,2725.5,5.93836681]
[1730933349306,0.55,2727.8,2725.6,0.46939799]
[1730933349602,0.8173,2727.7,2726.0,0.01]
[1730933349760,0.053735,2727.7,2726.0,0.01]
[1730933349960,0.053735,2727.7,2726.0,0.47939799]
[1730933350300,0.053735,2727.7,2726.0,0.46939799]
[1730933351105,0.55,2727.6,2726.0,0.46939799]
[1730933351562,0.55,2727.6,2725.8,0.01]
[1730933351756,0.55,2727.6,2725.9,0.46939799]
[1730933352503,0.55,2727.6,2726.0,0.07334987]
[1730933352658,3.2483,2729.0,2725.9,0.46939799]
[1730933352857,3.0,2728.7,2725.9,0.46939799]
[1730933353171,2.6983,2728.4,2725.9,0.46939799]
[1730933353567,0.55,2727.9,2725.9,0.46939799]
[1730933354108,0.55,2727.9,2726.5,0.01]
[1730933354265,0.73681638,2729.8,2727.0,0.01]
[1730933354606,0.592836,2729.7,2727.2,0.01]
[1730933355660,0.55,2729.5,2727.2,0.01]
[1730933355860,1.3364,2729.6,2727.2,0.01]
[1730933356090,0.55,2729.2,2727.1,0.01]
[1730933356508,0.7864,2729.3,2727.2,0.01]
[1730933356814,0.7864,2729.3,2727.0,4.72195527]
[1730933356815,0.7864,2729.3,2727.3,0.01]
[1730933356969,0.7864,2729.3,2727.0,4.72195527]
[1730933357509,0.7864,2729.3,2726.6,0.01]
[1730933357887,0.756,2728.4,2725.8,0.7114849]
[1730933358075,0.756,2727.8,2725.7,0.7904]
[1730933358278,0.55,2727.7,2726.2,0.70465524]
[1730933358476,0.55,2727.7,2726.3,0.07335169]
[1730933358774,0.55,2727.7,2726.0,1.14057904]
[1730933358999,0.55,2727.7,2726.1,1.53554001]
[1730933359210,0.756,2727.8,2726.2,1.60888338]
[1730933359413,0.756,2727.8,2726.3,1.53554001]
[1730933359613,0.756,2727.8,2726.4,1.53551845]
[1730933359794,0.756,2727.8,2726.5,1.53529388]
[1730933359981,0.756,2727.8,2726.2,0.07334337]
[1730933359982,0.55,2727.7,2726.2,1.06722735]
[1730933360183,0.55,2727.7,2726.3,1.53554347]
[1730933360472,0.55,2727.7,2725.9,1.06722735]
[1730933360671,0.55,2727.7,2726.1,0.07335804]
[1730933360918,3.877,2729.0,2726.1,0.07335804]
[1730933360919,0.8251,2729.3,2726.9,0.01]
[1730933361077,0.8251,2729.3,2727.2,0.01]
[1730933361273,0.8251,2729.3,2727.3,1.53484728]
[1730933361474,0.8251,2729.3,2727.4,1.53470403]
[1730933361785,0.8251,2729.3,2727.2,0.01]
[1730933362112,0.8251,2729.3,2727.3,1.53407698]
[1730933362426,0.8251,2729.3,2727.4,1.53407698]
[1730933362720,0.8251,2729.3,2727.2,0.01]
[1730933362876,0.8251,2729.3,2727.4,1.06722735]
[1730933363075,0.8251,2729.3,2727.7,0.7766]
[1730933363379,0.8251,2729.3,2728.0,0.01]
[1730933363726,0.8251,2729.3,2727.7,0.7766]
[1730933363926,0.8251,2729.3,2727.8,1.53374385]
[1730933364134,0.8251,2729.3,2728.0,0.01]
[1730933364437,0.8251,2729.3,2728.0,0.0733056]
[1730933364596,0.8251,2729.3,2727.7,0.7766]
[1730933364791,0.8251,2729.3,2728.0,0.01]
[1730933364991,0.8251,2729.3,2727.7,2.17191526]
[1730933365220,0.8251,2729.3,2727.8,1.53313785]
[1730933365417,0.8251,2729.3,2727.7,2.17191526]
[1730933365418,0.8251,2729.3,2727.9,1.53313785]
[1730933365629,0.8251,2729.3,2728.0,1.53313785]
[1730933365788,0.8251,2729.3,2728.0,0.01]
[1730933366740,0.8251,2729.3,2727.8,0.07330386]
[1730933366900,0.8251,2729.3,2728.0,0.01]
[1730933367095,0.8251,2729.3,2728.0,0.08329826]
[1730933367635,0.8251,2729.3,2728.1,0.68643055]
[1730933367838,0.8251,2729.3,2728.1,0.0732967]
[1730933368336,0.8251,2729.3,2728.2,0.61321368]
[1730933368536,0.8251,2729.3,2728.3,0.07329668]
[1730933369438,0.8251,2729.3,2728.1,0.07329678]
[1730933369624,0.7642,2729.8,2728.4,0.01]
[1730933369801,0.7642,2729.8,2728.2,0.61309391]
[1730933369802,0.7642,2729.8,2728.5,2.75545688]
[1730933370005,0.7642,2729.8,2728.6,1.6053928]
[1730933370203,0.7642,2729.8,2728.7,0.61287713]
[1730933370412,0.07327953,2729.7,2728.5,0.74158002]
[1730933370646,0.07327953,2729.7,2728.1,0.70158002]
[1730933370647,0.83247953,2729.7,2728.1,0.70158002]
[1730933370842,0.83247953,2729.7,2728.2,1.60529196]
[1730933371143,0.83247953,2729.7,2728.1,0.01]
[1730933371337,0.83247953,2729.7,2728.1,0.0832843]
[1730933371641,0.83247953,2729.7,2728.4,0.01]
[1730933372638,0.83247953,2729.7,2728.3,0.01]
[1730933373033,0.83247953,2729.7,2728.1,0.01]
[1730933373338,0.83247953,2729.7,2728.7,0.01]
[1730933373539,0.7592,2729.7,2728.7,0.01]
[1730933373841,0.7592,2729.7,2728.7,0.47955656]
[1730933374000,0.7592,2729.7,2728.7,0.01]
[1730933374207,0.7592,2729.7,2728.8,0.46955656]
[1730933374516,0.005,2729.8,2728.9,0.07326586]
[1730933374733,0.005,2729.8,2728.8,0.7842]
[1730933374734,0.005,2729.8,2729.0,0.01]
[1730933375554,0.0775778,2729.8,2729.1,0.4953899]
[1730933375706,0.0775778,2729.8,2729.0,0.5053899]
[1730933376056,0.0775778,2729.8,2729.1,1.0453899]
[1730933376339,0.0775778,2729.8,2729.1,0.55]
[1730933376703,0.0775778,2729.8,2729.1,1.0453899]
[1730933376904,0.0775778,2729.8,2729.1,0.55]
[1730933377104,0.0775778,2729.8,2729.2,0.4953899]
[1730933377835,0.0775778,2729.8,2729.4,0.01]
[1730933378014,0.0775778,2729.8,2729.5,0.4953899]
[1730933378402,0.0775778,2729.8,2729.7,0.01]
[1730933378606,0.8117,2730.8,2729.7,0.57861824]
[1730933378846,1.13802604,2731.5,2730.3,0.01]
[1730933379081,0.69042401,2731.2,2730.4,0.56705656]
[1730933379439,0.07327953,2731.1,2730.3,0.01]
[1730933379641,0.69042401,2731.2,2730.3,0.01]
[1730933379989,0.07327953,2731.1,2730.3,0.01]
[1730933380141,0.69042401,2731.2,2730.3,0.01]
[1730933380340,0.69042401,2731.2,2729.9,0.7989]
[1730933380341,0.84063641,2731.1,2729.9,0.7989]
[1730933380541,0.07327953,2731.0,2730.2,0.01]
[1730933380750,6.90424009,2731.3,2730.7,4.72195527]
[1730933380972,6.90424009,2731.3,2731.0,0.01]
[1730933381377,6.90424009,2731.3,2730.9,0.01]
[1730933381584,6.90424009,2731.3,2730.2,0.76]
[1730933382167,6.90424009,2731.3,2730.2,1.71379461]
[1730933382776,6.90424009,2731.3,2730.2,0.76]
[1730933383578,0.07327953,2731.2,2730.2,0.76]
[1730933383776,6.90424009,2731.3,2730.2,0.76]
[1730933384320,0.7562,2733.7,2731.9,0.96279461]
[1730933384531,0.7562,2734.2,2732.5,0.8246]
[1730933384677,0.7562,2734.2,2732.6,0.68371355]
[1730933385039,0.7562,2734.2,2732.6,1.23617796]
[1730933385324,0.7562,2734.2,2732.6,0.6256214]
[1730933385529,0.09957786,2733.0,2732.9,0.01]
[1730933386148,0.09957786,2733.0,2732.9,0.6058899]
[1730933386293,0.09957786,2733.0,2732.9,0.01]
[1730933386625,0.09957786,2733.0,2732.9,0.08315158]
[1730933386831,0.09957786,2733.0,2732.9,0.08314588]
[1730933387130,0.09957786,2733.0,2732.9,0.01]
[1730933387485,0.09957786,2733.0,2732.9,0.005]
[1730933387691,0.09957786,2733.0,2732.9,1.1508899]
[1730933387890,0.09957786,2733.0,2732.9,0.555]
[1730933388118,0.09957786,2733.0,2732.9,0.005]
[1730933388288,0.09957786,2733.0,2732.9,1.05056238]
[1730933388487,0.09957786,2733.0,2732.9,0.555]
[1730933389321,0.09957786,2733.0,2732.9,0.005]
[1730933389831,0.7562,2734.4,2732.9,0.005]
[1730933389832,0.04416063,2734.4,2733.2,0.005]
[1730933390051,0.04416063,2734.4,2733.0,0.5958899]
[1730933390256,0.04416063,2734.4,2733.1,0.07815393]
[1730933390615,4.72195527,2734.3,2733.1,0.07315463]
[1730933390811,3.47219553,2734.2,2733.1,0.07315463]
[1730933391218,3.47219553,2734.2,2732.5,0.07816505]
[1730933391854,3.47219553,2734.2,2732.5,0.63080495]
[1730933392758,0.8186,2734.1,2732.5,0.63080495]
[1730933392960,0.8186,2734.1,2732.5,0.07816505]
[1730933393161,0.42907955,2734.0,2732.5,0.07816505]
[1730933394226,0.42907955,2734.0,2732.6,0.7824]
[1730933394635,0.42907955,2734.0,2732.5,0.005]
[1730933394851,0.8186,2734.1,2732.5,0.005]